fUSD/lending_fUSD_20240502
["ID","MTS","AMOUNT","RATE_DAILY","PERIOD"]
[325280718,1714679456239,-500.0,0.0003041,2]
[325280719,1714679456248,-500.0,0.0003041,2]
[325280720,1714679456257,-500.0,0.0003041,2]
[325280721,1714679456266,-500.0,0.0003041,2]
[325280722,1714679456275,-500.0,0.0003041,2]
[325280723,1714679456284,-264.12,0.0003041,2]
[325280724,1714679456293,-487.92492404,0.0003041,2]
[325280725,1714679456303,-830.8,0.0003041,2]
[325280726,1714679456312,-1775.98,0.0003041,2]
[325280727,1714679456321,-500.0,0.0003041,2]
[325280728,1714679456330,-500.0,0.0003041,2]
[325280729,1714679456340,-500.0,0.0003041,2]
[325280730,1714679456350,-500.0,0.0003041,2]
[325280731,1714679456360,-597.3,0.0003041,2]
[325280732,1714679456369,-500.0,0.0003041,2]
[325280733,1714679456379,-500.0,0.0003041,2]
[325280734,1714679456389,-500.0,0.0003041,2]
[325280735,1714679456398,-500.0,0.0003041,2]
[325280736,1714679456407,-500.0,0.0003041,2]
[325280737,1714679456415,-500.0,0.0003041,2]
[325280738,1714679456425,-500.0,0.0003041,2]
[325280739,1714679456434,-630.44,0.0003041,2]
[325280740,1714679456443,-500.0,0.0003041,2]
[325280741,1714679456452,-532.75,0.0003041,2]
[325280742,1714679456461,-543.37,0.0003041,2]
[325280743,1714679456470,-949.39,0.0003041,2]
[325280744,1714679456480,-500.0,0.0003041,2]
[325280745,1714679456488,-1015.8,0.0003041,2]
[325280746,1714679456498,-842.17,0.0003041,2]
[325280747,1714679456508,-500.0,0.0003041,2]
[325280748,1714679456517,-785.25,0.0003041,2]
[325280749,1714679456527,-500.0,0.0003041,2]
[325280750,1714679456536,-1494.46,0.0003041,2]
[325280751,1714679456546,-871.86,0.0003041,2]
[325280752,1714679456555,-1000.0,0.0003041,2]
[325280753,1714679456564,-582.33,0.0003041,2]
[325280754,1714679456573,-843.31,0.0003041,2]
[325280755,1714679456582,-500.0,0.0003041,2]
[325280756,1714679456591,-749.93,0.0003041,2]
[325280757,1714679456601,-500.0,0.0003041,2]
[325280758,1714679456610,-1500.04,0.0003041,2]
[325280759,1714679456620,-500.0,0.0003041,2]
[325280760,1714679456631,-1101.48,0.0003041,2]
[325280761,1714679456640,-500.0,0.0003041,2]
[325280762,1714679456649,-500.0,0.0003041,2]
[325280763,1714679456659,-955.42,0.0003041,2]
[325280764,1714679456670,-500.0,0.0003041,2]
[325280765,1714679456681,-917.71,0.0003041,2]
[325280766,1714679456692,-500.0,0.0003041,2]
[325280767,1714679456703,-888.96,0.0003041,2]
[325280768,1714679456714,-500.0,0.0003041,2]
[325280769,1714679456725,-500.0,0.0003041,2]
[325280770,1714679456735,-500.0,0.0003041,2]
[325280771,1714679456745,-566.51,0.0003041,2]
[325280772,1714679456757,-500.0,0.0003041,2]
[325280773,1714679456772,-713.03,0.0003041,2]
[325280774,1714679456782,-500.0,0.0003041,2]
[325280775,1714679456792,-500.0,0.0003041,2]
[325280776,1714679456803,-500.0,0.0003041,2]
[325280777,1714679456814,-501.53685732,0.0003041,2]
[325280778,1714679456824,-868.23,0.0003041,2]
[325280779,1714679456836,-894.67,0.0003041,2]
[325280780,1714679456846,-673.89,0.0003041,2]
[325280781,1714679456855,-500.0,0.0003041,2]
[325280782,1714679456865,-500.0,0.0003041,2]
[325280783,1714679456876,-827.23,0.0003041,2]
[325280784,1714679456885,-1543.5,0.0003041,2]
[325280785,1714679456896,-500.0,0.0003041,2]
[325280786,1714679456906,-500.0,0.0003041,2]
[325280787,1714679456916,-500.0,0.0003041,2]
[325280788,1714679456926,-500.0,0.0003041,2]
[325280789,1714679456936,-500.0,0.0003041,2]
[325280790,1714679456947,-500.0,0.0003041,2]
[325280791,1714679456957,-522.62,0.0003041,2]
[325280792,1714679456967,-564.2,0.0003041,2]
[325280793,1714679456976,-637.98,0.0003041,2]
[325280794,1714679456986,-503.52587278,0.0003041,2]
[325280795,1714679456996,-1016.74,0.0003041,2]
[325280796,1714679457006,-500.0,0.0003041,2]
[325280797,1714679457014,-500.61050219,0.0003041,2]
[325280798,1714679457023,-965.7,0.0003041,2]
[325280799,1714679457033,-503.39642659,0.0003041,2]
[325280800,1714679457042,-500.0,0.0003041,2]
[325280801,1714679457051,-500.0,0.0003041,2]
[325280802,1714679457060,-501.83594152,0.0003041,2]
[325280803,1714679457069,-500.0,0.0003041,2]
[325280804,1714679457079,-1183.3,0.0003041,2]
[325280805,1714679457088,-1247.96,0.0003041,2]
[325280806,1714679457098,-500.0,0.0003041,2]
[325280807,1714679457107,-500.0,0.0003041,2]
[325280808,1714679457117,-500.0,0.0003041,2]
[325280809,1714679457130,-1242.51,0.0003041,2]
[325280810,1714679457140,-612.38,0.0003041,2]
[325280811,1714679457150,-500.0,0.0003041,2]
[325280812,1714679457159,-602.21,0.0003041,2]
[325280813,1714679457168,-593.45,0.0003041,2]
[325280814,1714679457177,-500.0,0.0003041,2]
[325280815,1714679457186,-500.0,0.0003041,2]
[325280816,1714679457196,-500.0,0.0003041,2]
[325280817,1714679457205,-623.74,0.0003041,2]
[325280818,1714679457214,-1066.89,0.0003041,2]
[325280819,1714679457224,-543.31,0.0003041,2]
[325280820,1714679457233,-500.0,0.0003041,2]
[325280821,1714679457243,-500.0,0.0003041,2]
[325280822,1714679457253,-576.87,0.0003041,2]
[325280823,1714679457262,-501.13174412,0.0003041,2]
[325280824,1714679457271,-500.0,0.0003041,2]
[325280825,1714679457281,-514.82295811,0.0003041,2]
[325280826,1714679457290,-1354.51,0.0003041,2]
[325280827,1714679457299,-500.0,0.0003041,2]
[325280828,1714679457308,-1364.15,0.0003041,2]
[325280829,1714679457318,-500.0,0.0003041,2]
[325280830,1714679457327,-979.26,0.0003041,2]
[325280831,1714679457337,-1263.5,0.0003041,2]
[325280832,1714679457346,-520.94981832,0.0003041,2]
[325280833,1714679457356,-500.0,0.0003041,2]
[325280834,1714679457365,-500.0,0.0003041,2]
[325280835,1714679457378,-726.48,0.0003041,2]
[325280836,1714679457387,-1016.3,0.0003041,2]
[325280837,1714679457396,-516.23,0.0003041,2]
[325280838,1714679457406,-528.45,0.0003041,2]
[325280839,1714679457415,-500.0,0.0003041,2]
[325280840,1714679457423,-500.0,0.0003041,2]
[325280841,1714679457432,-718.52,0.0003041,2]
[325280842,1714679457503,-500.0,0.0003041,2]
[325280843,1714679457512,-500.0,0.0003041,2]
[325280844,1714679457522,-694.27,0.0003041,2]
[325280845,1714679457531,-500.0,0.0003041,2]
[325280846,1714679457539,-881.63,0.0003041,2]
[325280847,1714679457549,-500.0,0.0003041,2]
[325280848,1714679457559,-632.59,0.0003041,2]
[325280849,1714679457568,-615.72,0.0003041,2]
[325280850,1714679457580,-545.2,0.0003041,2]
[325280851,1714679457589,-500.0,0.0003041,2]
[325280852,1714679457599,-816.9,0.0003041,2]
[325280853,1714679457607,-500.0,0.0003041,2]
[325280854,1714679457616,-349.84452656,0.0003041,2]
[325280855,1714679457627,-2008.86,0.0003041,2]
[325280856,1714679457634,-502.3289609,0.0003041,2]
[325280857,1714679457642,-500.0,0.0003041,2]
[325280858,1714679457649,-678.52,0.0003041,2]
[325280859,1714679457657,-500.0,0.0003041,2]
[325280860,1714679457667,-500.0,0.0003041,2]
[325280861,1714679457677,-500.0,0.0003041,2]
[325280862,1714679457686,-500.0,0.0003041,2]
[325280863,1714679457695,-1045.4,0.0003041,2]
[325280864,1714679457703,-922.06,0.0003041,2]
[325280865,1714679457712,-2188.95,0.0003041,2]
[325280866,1714679457721,-429.80091991,0.0003041,2]
[325280867,1714679457730,-1361.34,0.0003041,2]
[325280868,1714679457739,-500.0,0.0003041,2]
[325280869,1714679457749,-500.0,0.0003041,2]
[325280870,1714679457757,-1349.95,0.0003041,2]
[325280871,1714679457767,-500.0,0.0003041,2]
[325280872,1714679457778,-500.0,0.0003041,2]
[325280873,1714679457787,-500.0,0.0003041,2]
[325280874,1714679457797,-500.0,0.0003041,2]
[325280875,1714679457806,-500.0,0.0003041,2]
[325280876,1714679457816,-500.0,0.0003041,2]
[325280877,1714679457825,-500.0,0.0003041,2]
[325280878,1714679457835,-500.0,0.0003041,2]
[325280879,1714679457844,-505.69202517,0.0003041,2]
[325280880,1714679457854,-500.0,0.0003041,2]
[325280881,1714679457863,-500.0,0.0003041,2]
[325280882,1714679457872,-500.0,0.0003041,2]
[325280883,1714679457883,-798.24,0.0003041,2]
[325280884,1714679457892,-500.0,0.0003041,2]
[325280885,1714679457901,-500.0,0.0003041,2]
[325280886,1714679457910,-500.0,0.0003041,2]
[325280887,1714679457919,-500.0,0.0003041,2]
[325280888,1714679457927,-1536.34,0.0003041,2]
[325280889,1714679457936,-1218.78,0.0003041,2]
[325280890,1714679457946,-586.57,0.0003041,2]
[325280891,1714679457955,-500.0,0.0003041,2]
[325280892,1714679457964,-522.57387082,0.0003041,2]
[325280893,1714679457973,-500.0,0.0003041,2]
[325280894,1714679457982,-2652.61,0.0003041,2]
[325280895,1714679457991,-500.0,0.0003041,2]
[325280896,1714679458000,-562.7,0.0003041,2]
[325280897,1714679458010,-500.0,0.0003041,2]
[325280898,1714679458019,-540.9,0.0003041,2]
[325280899,1714679458028,-500.0,0.0003041,2]
[325280900,1714679458036,-695.01,0.0003041,2]
[325280901,1714679458045,-508.48561641,0.0003041,2]
[325280902,1714679458055,-500.0,0.0003041,2]
[325280903,1714679458064,-500.0,0.0003041,2]
[325280904,1714679458073,-500.0,0.0003041,2]
[325280905,1714679458082,-500.0,0.0003041,2]
[325280906,1714679458091,-500.0,0.0003041,2]
[325280907,1714679458100,-949.25,0.0003041,2]
[325280908,1714679458109,-1038.9,0.0003041,2]
[325280909,1714679458118,-835.55,0.0003041,2]
[325280910,1714679458128,-500.0,0.0003041,2]
[325280911,1714679458137,-754.96,0.0003041,2]
[325280912,1714679458147,-849.81,0.0003041,2]
[325280913,1714679458156,-1564.05,0.0003041,2]
[325280914,1714679458166,-500.0,0.0003041,2]
[325280915,1714679458175,-500.0,0.0003041,2]
[325280916,1714679458185,-540.93,0.0003041,2]
[325280917,1714679458194,-587.98,0.0003041,2]
[325280918,1714679458203,-1499.67,0.0003041,2]
[325280919,1714679458212,-654.82,0.0003041,2]
[325280920,1714679458221,-754.01,0.0003041,2]
[325280921,1714679458231,-993.99,0.0003041,2]
[325280922,1714679458240,-500.0,0.0003041,2]
[325280923,1714679458250,-500.0,0.0003041,2]
[325280924,1714679458259,-500.0,0.0003041,2]
[325280925,1714679458268,-764.26,0.0003041,2]
[325280926,1714679458278,-500.0,0.0003041,2]
[325280927,1714679458288,-500.0,0.0003041,2]
[325280928,1714679458298,-500.0,0.0003041,2]
[325280929,1714679458307,-650.88,0.0003041,2]
[325280930,1714679458315,-500.0,0.0003041,2]
[325280931,1714679458325,-500.0,0.0003041,2]
[325280932,1714679458335,-640.6,0.0003041,2]
[325280933,1714679458345,-500.0,0.0003041,2]
[325280934,1714679458356,-500.0,0.0003041,2]
[325280935,1714679458366,-654.9,0.0003041,2]
[325280936,1714679458375,-768.25,0.0003041,2]
[325280937,1714679458384,-500.0,0.0003041,2]
[325280938,1714679458394,-1173.83,0.0003041,2]
[325280939,1714679458403,-500.0,0.0003041,2]
[325280940,1714679458413,-550.25,0.0003041,2]
[325280941,1714679458421,-411.37287135,0.0003041,2]
[325280942,1714679458430,-3324.03,0.0003041,2]
[325280943,1714679458439,-500.0,0.0003041,2]
[325280944,1714679458448,-500.0,0.0003041,2]
[325280945,1714679458457,-543.62348767,0.0003041,2]
[325280946,1714679458466,-500.0,0.0003041,2]
[325280947,1714679458475,-500.0,0.0003041,2]
[325280948,1714679458484,-624.02,0.0003041,2]
[325280949,1714679458493,-500.0,0.0003041,2]
[325280950,1714679458502,-500.0,0.0003041,2]
[325280951,1714679458511,-826.37,0.0003041,2]
[325280952,1714679458526,-694.75,0.0003041,2]
[325280953,1714679458537,-500.0,0.0003041,2]
[325280954,1714679458547,-500.0,0.0003041,2]
[325280955,1714679458558,-539.94502846,0.0003041,2]
[325280956,1714679458568,-2880.73,0.0003041,2]
[325280957,1714679458577,-500.0,0.0003041,2]
[325280958,1714679458587,-500.0,0.0003041,2]
[325280959,1714679458597,-1269.18,0.0003041,2]
[325280960,1714679458607,-4742.53,0.0003041,2]
[325280961,1714679458617,-500.0,0.0003041,2]
[325280962,1714679458626,-500.0,0.0003041,2]
[325280963,1714679458636,-500.65219985,0.0003041,2]
[325280964,1714679458645,-556.22,0.0003041,2]
[325280965,1714679458654,-500.0,0.0003041,2]
[325280966,1714679458664,-500.0,0.0003041,2]
[325280967,1714679458674,-892.29,0.0003041,2]
[325280968,1714679458683,-500.0,0.0003041,2]
[325280969,1714679458692,-500.0,0.0003041,2]
[325280970,1714679458700,-601.01,0.0003041,2]
[325280971,1714679458710,-1986.32,0.0003041,2]
[325280972,1714679458719,-500.0,0.0003041,2]
[325280973,1714679458728,-500.0,0.0003041,2]
[325280974,1714679458737,-169.51294742,0.0003041,2]
[325280975,1714679458747,-500.0,0.0003041,2]
[325280976,1714679458756,-600.44,0.0003041,2]
[325280977,1714679458769,-500.0,0.0003041,2]
[325280978,1714679458778,-526.35,0.0003041,2]
[325280979,1714679458787,-500.0,0.0003041,2]
[325280980,1714679458795,-500.0,0.0003041,2]
[325280981,1714679458804,-500.0,0.0003041,2]
[325280982,1714679458814,-549.98,0.0003041,2]
[325280983,1714679458823,-500.0,0.0003041,2]
[325280984,1714679458832,-2276.69,0.0003041,2]
[325280985,1714679458844,-500.0,0.0003041,2]
[325280986,1714679458853,-500.0,0.0003041,2]
[325280987,1714679458861,-500.0,0.0003041,2]
[325280988,1714679458870,-384.15659199,0.0003041,2]
[325280989,1714679458881,-895.47,0.0003041,2]
[325280990,1714679458890,-500.0,0.0003041,2]
[325280991,1714679458899,-500.0,0.0003041,2]
[325280992,1714679458908,-500.0,0.0003041,2]
[325280993,1714679458918,-500.0,0.0003041,2]
[325280994,1714679458927,-500.0,0.0003041,2]
[325280995,1714679458936,-500.0,0.0003041,2]
[325280996,1714679458945,-500.0,0.0003041,2]
[325280997,1714679458955,-500.0,0.0003041,2]
[325280998,1714679458964,-500.0,0.0003041,2]
[325280999,1714679458974,-500.0,0.0003041,2]
[325281000,1714679458983,-4033.98,0.0003041,2]
[325281001,1714679458992,-500.0,0.0003041,2]
[325281002,1714679459000,-500.0,0.0003041,2]
[325281003,1714679459009,-8955.51,0.0003041,2]
[325281004,1714679459018,-1121.66,0.0003041,2]
[325281005,1714679459027,-1049.61,0.0003041,2]
[325281006,1714679459036,-500.0,0.0003041,2]
[325281007,1714679459045,-500.0,0.0003041,2]
[325281008,1714679459054,-500.0,0.0003041,2]
[325281009,1714679459063,-1319.46,0.0003041,2]
[325281010,1714679459072,-500.0,0.0003041,2]
[325281011,1714679459081,-500.0,0.0003041,2]
[325281012,1714679459091,-700.9,0.0003041,2]
[325281013,1714679459100,-500.0,0.0003041,2]
[325281014,1714679459110,-1250.08,0.0003041,2]
[325281015,1714679459119,-500.0,0.0003041,2]
[325281016,1714679459127,-500.0,0.0003041,2]
[325281017,1714679459137,-500.0,0.0003041,2]
[325281018,1714679459146,-500.0,0.0003041,2]
[325281019,1714679459155,-500.0,0.0003041,2]
[325281020,1714679459164,-500.0,0.0003041,2]
[325281021,1714679459174,-500.0,0.0003041,2]
[325281022,1714679459183,-693.2,0.0003041,2]
[325281023,1714679459192,-500.0,0.0003041,2]
[325281024,1714679459201,-1629.89,0.0003041,2]
[325281025,1714679459210,-1823.07,0.0003041,2]
[325281026,1714679459219,-500.0,0.0003041,2]
[325281028,1714679459228,-517.18,0.0003041,2]
[325281029,1714679459237,-14936.68,0.0003041,2]
[325281030,1714679459247,-500.0,0.0003041,2]
[325281031,1714679459256,-500.0,0.0003041,2]
[325281032,1714679459265,-189.54271301,0.0003041,2]
[325281033,1714679459274,-500.0,0.0003041,2]
[325281034,1714679459283,-500.0,0.0003041,2]
[325281035,1714679459292,-500.0,0.0003041,2]
[325281036,1714679459302,-500.0,0.0003041,2]
[325281037,1714679459311,-500.0,0.0003041,2]
[325281038,1714679459320,-864.25,0.0003041,2]
[325281039,1714679459330,-500.0,0.0003041,2]
[325281040,1714679459340,-500.0,0.0003041,2]
[325281041,1714679459349,-500.0,0.0003041,2]
[325281042,1714679459359,-500.0,0.0003041,2]
[325281043,1714679459368,-1292.14,0.0003041,2]
[325281044,1714679459377,-500.0,0.0003041,2]
[325281045,1714679459387,-618.76,0.0003041,2]
[325281046,1714679459396,-500.0,0.0003041,2]
[325281047,1714679459405,-3749.92,0.0003041,2]
[325281048,1714679459414,-1074.69,0.0003041,2]
[325281049,1714679459423,-500.0,0.0003041,2]
[325281050,1714679459432,-512.16,0.0003041,2]
[325281051,1714679459441,-500.0,0.0003041,2]
[325281052,1714679459450,-500.0,0.0003041,2]
[325281053,1714679459459,-1127.11,0.0003041,2]
[325281054,1714679459468,-500.0,0.0003041,2]
[325281055,1714679459478,-1900.57,0.0003041,2]
[325281056,1714679459487,-500.0,0.0003041,2]
[325281057,1714679459496,-631.25,0.0003041,2]
[325281058,1714679459505,-967.59,0.0003041,2]
[325281059,1714679459515,-500.0,0.0003041,2]
[325281060,1714679459524,-1081.27,0.0003041,2]
[325281061,1714679459533,-4296.96,0.0003041,2]
[325281062,1714679459542,-501.74788891,0.0003041,2]
[325281063,1714679459552,-500.0,0.0003041,2]
[325281064,1714679459561,-500.0,0.0003041,2]
[325281065,1714679459571,-1095.07,0.0003041,2]
[325281066,1714679459580,-1146.71,0.0003041,2]
[325281067,1714679459588,-5341.96,0.0003041,2]
[325281068,1714679459598,-1650.65,0.0003041,2]
[325281069,1714679459607,-500.0,0.0003041,2]
[325281070,1714679459617,-500.0,0.0003041,2]
[325281071,1714679459626,-860.03,0.0003041,2]
[325281072,1714679459636,-500.0,0.0003041,2]
[325281073,1714679459645,-648.38,0.0003041,2]
[325281074,1714679459655,-500.0,0.0003041,2]
[325281075,1714679459664,-889.47,0.0003041,2]
[325281076,1714679459673,-1954.74,0.0003041,2]
[325281077,1714679459682,-1233.4,0.0003041,2]
[325281078,1714679459693,-1752.89,0.0003041,2]
[325281079,1714679459703,-500.0,0.0003041,2]
[325281080,1714679459715,-500.0,0.0003041,2]
[325281081,1714679459725,-863.84,0.0003041,2]
[325281082,1714679459735,-15201.22,0.0003041,2]
[325281083,1714679459745,-7254.97,0.0003041,2]
[325281084,1714679459755,-816.62,0.0003041,2]
[325281085,1714679459765,-500.0,0.0003041,2]
[325281086,1714679459779,-896.03,0.0003041,2]
[325281087,1714679459791,-20067.58,0.0003041,2]
[325281088,1714679459800,-500.0,0.0003041,2]
[325281089,1714679459810,-997.71,0.0003041,2]
[325281090,1714679459820,-569.53,0.0003041,2]
[325281091,1714679459829,-2529.99,0.0003041,2]
[325281092,1714679459837,-1238.03,0.0003041,2]
[325281093,1714679459846,-2629.15,0.0003041,2]
[325281094,1714679459859,-500.0,0.0003041,2]
[325281095,1714679459868,-1474.04,0.0003041,2]
[325281096,1714679459878,-1032.28,0.0003041,2]
[325281097,1714679459888,-500.0,0.0003041,2]
[325281098,1714679459896,-432.37062235,0.0003041,2]
[325281099,1714679459905,-3116.86,0.0003041,2]
[325281100,1714679459915,-500.0,0.0003041,2]
[325281101,1714679459924,-500.0,0.0003041,2]
[325281102,1714679459933,-1171.7,0.0003041,2]
[325281103,1714679459943,-3019.68,0.0003041,2]
[325281104,1714679459953,-1388.44,0.0003041,2]
[325281105,1714679459962,-1500.0,0.0003041,2]
[325281106,1714679459971,-670.98,0.0003041,2]
[325281107,1714679459981,-500.0,0.0003041,2]
[325281108,1714679459991,-500.0,0.0003041,2]
[325281109,1714679460000,-500.0,0.0003041,2]
[325281110,1714679460009,-1737.43,0.0003041,2]
[325281111,1714679460018,-500.0,0.0003041,2]
[325281112,1714679460027,-156.97390484,0.0003041,2]
[325281113,1714679460037,-500.0,0.0003041,2]
[325281114,1714679460046,-856.33,0.0003041,2]
[325281115,1714679460056,-500.0,0.0003041,2]
[325281116,1714679460066,-2061.24,0.0003041,2]
[325281117,1714679460075,-500.0,0.0003041,2]
[325281118,1714679460084,-6411.27,0.0003041,2]
[325281119,1714679460093,-500.0,0.0003041,2]
[325281120,1714679460103,-452.73046237,0.0003041,2]
[325281121,1714679460112,-500.0,0.0003041,2]
[325281122,1714679460122,-2119.03,0.0003041,2]
[325281123,1714679460131,-500.0,0.0003041,2]
[325281124,1714679460141,-270.15132949,0.0003041,2]
[325281125,1714679460150,-712.14,0.0003041,2]
[325281126,1714679460159,-5423.85,0.0003041,2]
[325281127,1714679460169,-549.98,0.0003041,2]
[325281128,1714679460180,-500.0,0.0003041,2]
[325281129,1714679460189,-500.0,0.0003041,2]
[325281130,1714679460199,-1150.45,0.0003041,2]
[325281131,1714679460208,-1600.83,0.0003041,2]
[325281132,1714679460218,-2375.53,0.0003041,2]
[325281133,1714679460227,-500.0,0.0003041,2]
[325281134,1714679460237,-2015.14,0.0003041,2]
[325281135,1714679460246,-500.0,0.0003041,2]
[325281136,1714679460255,-583.61,0.0003041,2]
[325281137,1714679460265,-1073.94,0.0003041,2]
[325281138,1714679460275,-500.0,0.0003041,2]
[325281139,1714679460284,-2789.45,0.0003041,2]
[325281140,1714679460295,-560.33,0.0003041,2]
[325281141,1714679460304,-500.0,0.0003041,2]
[325281142,1714679460314,-500.0,0.0003041,2]
[325281143,1714679460323,-500.0,0.0003041,2]
[325281144,1714679460332,-813.1,0.0003041,2]
[325281145,1714679460344,-11312.06,0.0003041,2]
[325281146,1714679460354,-500.0,0.0003041,2]
[325281147,1714679460364,-2549.62,0.0003041,2]
[325281148,1714679460374,-1732.56,0.0003041,2]
[325281149,1714679460384,-1217.14,0.0003041,2]
[325281150,1714679460393,-500.0,0.0003041,2]
[325281151,1714679460404,-628.64,0.0003041,2]
[325281152,1714679460413,-944.17,0.0003041,2]
[325281153,1714679460422,-500.0,0.0003041,2]
[325281154,1714679460431,-500.0,0.0003041,2]
[325281155,1714679460440,-2896.64,0.0003041,2]
[325281156,1714679460450,-5273.67,0.0003041,2]
[325281157,1714679460459,-500.0,0.0003041,2]
[325281158,1714679460468,-4102.41,0.0003041,2]
[325281159,1714679460477,-2110.64,0.0003041,2]
[325281160,1714679460487,-500.0,0.0003041,2]
[325281161,1714679460505,-1120.31,0.0003041,2]
[325281162,1714679460517,-500.0,0.0003041,2]
[325281163,1714679460527,-1276.67,0.0003041,2]
[325281164,1714679460536,-500.0,0.0003041,2]
[325281165,1714679460546,-500.0,0.0003041,2]
[325281166,1714679460555,-500.0,0.0003041,2]
[325281167,1714679460564,-757.5,0.0003041,2]
[325281168,1714679460574,-937.87,0.0003041,2]
[325281169,1714679460583,-518.72,0.0003041,2]
[325281170,1714679460593,-1034.1,0.0003041,2]
[325281171,1714679460603,-500.0,0.0003041,2]
[325281172,1714679460612,-1216.64,0.0003041,2]
[325281173,1714679460622,-500.0,0.0003041,2]
[325281174,1714679460632,-1752.32,0.0003041,2]
[325281175,1714679460642,-2382.25,0.0003041,2]
[325281176,1714679460652,-2617.66,0.0003041,2]
[325281177,1714679460661,-647.68763101,0.0003041,2]
[325281178,1714679460671,-500.0,0.0003041,2]
[325281179,1714679460680,-500.0,0.0003041,2]
[325281180,1714679460690,-1002.57,0.0003041,2]
[325281181,1714679460699,-1532.14,0.0003041,2]
[325281182,1714679460710,-500.0,0.0003041,2]
[325281183,1714679460720,-500.0,0.0003041,2]
[325281184,1714679460729,-500.0,0.0003041,2]
[325281185,1714679460739,-1142.67,0.0003041,2]
[325281186,1714679460748,-500.0,0.0003041,2]
[325281187,1714679460757,-500.0,0.0003041,2]
[325281188,1714679460767,-500.0,0.0003041,2]
[325281189,1714679460781,-580.02223885,0.0003041,2]
[325281190,1714679460791,-500.0,0.0003041,2]
[325281191,1714679460802,-2195.69,0.0003041,2]
[325281192,1714679460811,-500.0,0.0003041,2]
[325281193,1714679460822,-1867.03,0.0003041,2]
[325281194,1714679460832,-786.96,0.0003041,2]
[325281195,1714679460841,-500.0,0.0003041,2]
[325281196,1714679460851,-750.7,0.0003041,2]
[325281197,1714679460862,-1346.98,0.0003041,2]
[325281198,1714679460871,-500.0,0.0003041,2]
[325281199,1714679460882,-681.66,0.0003041,2]
[325281200,1714679460892,-2596.2,0.0003041,2]
[325281201,1714679460901,-1197.76,0.0003041,2]
[325281202,1714679460910,-500.0,0.0003041,2]
[325281203,1714679460919,-653.72,0.0003041,2]
[325281204,1714679460928,-563.80210614,0.0003041,2]
[325281205,1714679460938,-17194.41,0.0003041,2]
[325281206,1714679460948,-689.79,0.0003041,2]
[325281207,1714679460959,-3211.52,0.0003041,2]
[325281208,1714679460969,-500.0,0.0003041,2]
[325281209,1714679460981,-500.0,0.0003041,2]
[325281210,1714679460991,-709.65,0.0003041,2]
[325281211,1714679461001,-500.0,0.0003041,2]
[325281212,1714679461011,-500.0,0.0003041,2]
[325281213,1714679461020,-1284.83,0.0003041,2]
[325281214,1714679461031,-500.0,0.0003041,2]
[325281215,1714679461040,-500.0,0.0003041,2]
[325281216,1714679461051,-500.0,0.0003041,2]
[325281217,1714679461062,-17481.07,0.0003041,2]
[325281218,1714679461072,-6266.98,0.0003041,2]